[Event "CZE-tht Extraliga 2018-19"]
[Site "Czech Republic"]
[Date "2019.04.19"]
[Round "9.5"]
[White "Krejci, Jan"]
[Black "Rydl, Jiri"]
[Result "1/2-1/2"]
[ECO "D45"]
[WhiteElo "2588"]
[BlackElo "2428"]
[Annotator "RC"]
[PlyCount "86"]
[EventDate "2018.11.03"]
[EventType "team-tourn"]
[EventCountry "CZE"]
[SourceTitle "playchess.com"]
[Source "ChessBase"]
[SourceQuality "1"]
[WhiteTeam "Novoborsky"]
[BlackTeam "Siesta"]
[TimeControl "40/5400+30:1800+30"]

1. d4 {[%emt 0:00:00]} d5 {[%emt 0:00:00]} 2. c4 {[%emt 0:00:36]} c6 {[%emt 0:00:04]} 3. Nc3 {[%emt 0:00:41]} Nf6 {[%emt 0:00:33]} 4. e3 {[%emt 0:00:09]} e6 {[%emt 0:00:21]} 5. Nf3 {[%emt 0:00:30]} Nbd7 {[%emt 0:00:11]} 6. Qc2 {[%emt 0:00:47]} Bd6 {[%emt 0:00:56]} 7. Bd3 {[%emt 0:00:06]} O-O {[%emt 0:00:30]} 8. O-O {[%emt 0:00:04]} h6 {[%emt 0:02:05]} 9. h3 {[%emt 0:00:09]} b6 {[%emt 0:02:15]} 10. b3 {[%emt 0:00:06]} Bb7 {[%emt 0:00:08]} 11. Bb2 {[%emt 0:00:05]} Re8 {[%emt 0:10:53]} 12. Rad1 {[%emt 0:00:16]} Qc7 {[%emt 0:00:59]} 13. Rfe1 {[%emt 0:02:47]} Rad8 {[%emt 0:01:52]} 14. a3 {[%emt 0:06:50]} Qb8 {[%emt 0:16:34]} 15. e4 {[%emt 0:08:20]} dxc4 {[%emt 0:09:06]} 16. Bxc4 {[%emt 0:03:06]} b5 {[%emt 0:02:18]} 17. Bf1 {[%emt 0:04:48]} e5 {[%emt 0:01:29]} 18. dxe5 Nxe5 {[%emt 0:01:26]} 19. Nh4 {[%emt 0:10:22]} Bf8 {[%emt 0:14:21]} 20. Nf5 {[%emt 0:06:10]} g6 {[%emt 0:06:24]} 21. Ng3 {[%emt 0:00:19]} h5 {[%emt 0:05:16]} 22. Rxd8 {[%emt 0:04:44]} Qxd8 {[%emt 0:01:50]} 23. Be2 {[%emt 0:03:22]} Qb6 {[%emt 0:02:17]} 24. Qd2 {[%emt 0:06:44]} Kh7 {[%emt 0:05:20]} 25. Rd1 {[%emt 0:04:20]} a6 {[%emt 0:01:07]} 26. Qf4 {[%emt 0:03:39]} Re6 {[%emt 0:02:22]} 27. Bc1 {[%emt 0:00:35]} Ng8 {[%emt 0:02:01]} 28. Qd2 {[%emt 0:08:57]} Rf6 {[%emt 0:02:32]} 29. Nh1 {[%emt 0:02:19]} Rd6 {[%emt 0:05:16]} 30. Qc2 {[%emt 0:00:51]} Rxd1+ {[%emt 0:00:06]} 31. Bxd1 {[%emt 0:01:33]} a5 {[%emt 0:01:17]} 32. Be3 {[%emt 0:02:16]} c5 {[%emt 0:01:40]} 33. Be2 {[%emt 0:01:59]} b4 {[%emt 0:01:03]} 34. axb4 {[%emt 0:00:04]} axb4 {[%emt 0:00:06]} 35. Na4 {[%emt 0:01:59]} Qc6 {[%emt 0:00:05]} 36. f3 {[%emt 0:00:21]} c4 {[%emt 0:01:48]} 37. bxc4 {[%emt 0:00:33]} Ba6 {[%emt 0:00:29]} 38. Nb2 {[%emt 0:03:44]} Bc5 {[%emt 0:00:14]} 39. Bxc5 {[%emt 0:00:08]} Qxc5+ {[%emt 0:00:04]} 40. Nf2 {[%emt 0:00:05]} Ne7 {[%emt 0:01:55]} 41. Qa4 {[%emt 0:32:55]} Qe3 {[%emt 0:05:22]} 42. Bf1 {[%emt 0:00:00]} Qa3 {[%emt 0:00:41]} 43. Nfd1 {[%emt 0:00:00]} Bxc4 {[%emt 0:10:48]} 1/2-1/2

[Event "CZE-tht Extraliga 2018-19"]
[Site "Czech Republic"]
[Date "2019.04.19"]
[Round "9.5"]
[White "Votava, Jan"]
[Black "Vykouk, Jan"]
[Result "1/2-1/2"]
[ECO "A84"]
[WhiteElo "2518"]
[BlackElo "2441"]
[Annotator "ChessBase"]
[PlyCount "69"]
[EventDate "2018.11.03"]
[EventType "team-tourn"]
[EventCountry "CZE"]
[SourceTitle "playchess.com"]
[Source "ChessBase"]
[SourceQuality "1"]
[WhiteTeam "Pardubice"]
[BlackTeam "Turnov"]
[TimeControl "40/5400+30:1800+30"]

1. d4 e6 2. c4 f5 3. Nc3 Nf6 4. g3 c6 5. Bg2 d5 6. Nf3 Bd6 7. Bf4 Bxf4 8. gxf4 O-O 9. e3 b6 10. Ne5 Bb7 11. h4 Nbd7 12. h5 h6 13. Qb3 Nxe5 14. fxe5 Ne4 15. f4 Ba6 16. cxd5 Nxc3 17. Qxc3 cxd5 18. Qa3 Bb5 19. Rc1 Rc8 20. Rxc8 Qxc8 21. Kd2 Rf7 22. Rc1 Rc7 23. Rxc7 Qxc7 24. Qb4 Qc4 25. Qxc4 Bxc4 26. b3 Bb5 27. Bf3 Kf7 28. Be2 Be8 29. Ke1 Ke7 30. Kf2 Kd8 31. Kg3 Kc7 32. Kh4 a5 33. a3 Bd7 34. Bd3 Bc6 35. Be2 1/2-1/2

[Event "CZE-tht Extraliga 2018-19"]
[Site "Czech Republic"]
[Date "2019.04.19"]
[Round "9.6"]
[White "Kraus, Tomas"]
[Black "Neuman, Petr"]
[Result "1-0"]
[ECO "E70"]
[WhiteElo "2456"]
[BlackElo "2397"]
[Annotator "RC"]
[PlyCount "63"]
[EventDate "2018.11.03"]
[EventType "team-tourn"]
[EventCountry "CZE"]
[SourceTitle "playchess.com"]
[Source "ChessBase"]
[SourceQuality "1"]
[WhiteTeam "Turnov"]
[BlackTeam "Pardubice"]
[TimeControl "40/5400+30:1800+30"]

1. c4 {[%emt 0:00:00]} Nf6 {[%emt 0:00:00]} 2. Nc3 {[%emt 0:00:26]} g6 {[%emt 0:00:15]} 3. d4 {[%emt 0:01:27]} Bg7 {[%emt 0:00:06]} 4. e4 {[%emt 0:01:45]} O-O {[%emt 0:01:23]} 5. Bd3 {[%emt 0:00:47]} d6 {[%emt 0:01:09]} 6. Nge2 {[%emt 0:00:13]} c5 {[%emt 0:05:34]} 7. d5 {[%emt 0:00:21]} e6 {[%emt 0:00:07]} 8. O-O {[%emt 0:03:03]} exd5 {[%emt 0:01:57]} 9. cxd5 {[%emt 0:01:01]} Na6 {[%emt 0:04:02]} 10. a3 {[%emt 0:09:51]} Re8 {[%emt 0:04:49]} 11. Ng3 {[%emt 0:05:06]} Bd7 {[%emt 0:04:04]} 12. Bf4 {[%emt 0:08:52]} h5 {[%emt 0:02:08]} 13. h3 {[%emt 0:13:34]} h4 {[%emt 0:02:54]} 14. Nge2 {[%emt 0:01:47]} c4 {[%emt 0:02:20]} 15. Bc2 {[%emt 0:01:45]} Nc5 {[%emt 0:03:18]} 16. Bg5 {[%emt 0:01:41]} Qb6 {[%emt 0:00:32]} 17. Qb1 {[%emt 0:00:20]} Nd3 {[%emt 0:05:02]} 18. Bxd3 {[%emt 0:06:22]} cxd3 {[%emt 0:00:06]} 19. Qxd3 {[%emt 0:00:03]} Nxe4 {[%emt 0:07:29]} 20. Nxe4 {[%emt 0:01:15]} Bf5 {[%emt 0:10:10]} 21. N2c3 {[%emt 0:01:34]} Bxc3 {[%emt 0:00:33]} 22. Qxc3 {[%emt 0:00:53]} Rxe4 {[%emt 0:00:45]} 23. Rad1 {[%emt 0:06:46]} f6 {[%emt 0:03:04]} 24. Bxf6 {[%emt 0:01:23]} Rc8 {[%emt 0:00:54]} 25. Qd2 {[%emt 0:01:20]} Kh7 {[%emt 0:00:40]} 26. Bd4 {[%emt 0:03:24]} Qb5 {[%emt 0:02:15]} 27. Bc3 {[%emt 0:02:31]} Qb6 {[%emt 0:02:32]} 28. Rfe1 {[%emt 0:05:23]} Rce8 {[%emt 0:01:29]} 29. Rxe4 {[%emt 0:00:50]} Rxe4 {[%emt 0:00:05]} 30. Qg5 {[%emt 0:01:13]} Re2 {[%emt 0:06:10]} 31. Rd4 {[%emt 0:04:12]} Kg8 {[%emt 0:00:54]} 32. Kh2 {[%emt 0:02:57]} 1-0

[Event "CZE-tht Extraliga 2018-19"]
[Site "Czech Republic"]
[Date "2019.04.19"]
[Round "9.7"]
[White "Zilka, Stepan"]
[Black "Simek, Petr"]
[Result "1-0"]
[ECO "C84"]
[WhiteElo "2534"]
[BlackElo "2296"]
[Annotator "ChessBase"]
[PlyCount "27"]
[EventDate "2018.11.03"]
[EventType "team-tourn"]
[EventCountry "CZE"]
[SourceTitle "playchess.com"]
[Source "ChessBase"]
[SourceQuality "1"]
[WhiteTeam "Novoborsky"]
[BlackTeam "Siesta"]
[TimeControl "40/5400+30:1800+30"]

1. e4 e5 2. Nf3 Nc6 3. Bb5 a6 4. Ba4 Nf6 5. O-O Be7 6. d3 b5 7. Bb3 d6 8. a3 O-O 9. Nc3 Bg4 10. Be3 Qd7 11. h3 Bh5 12. Nd5 Nxd5 13. Bxd5 Rad8 14. Nxe5 1-0

[Event "CZE-tht Extraliga 2018-19"]
[Site "Czech Republic"]
[Date "2019.04.19"]
[Round "9.7"]
[White "Pulpan, Jakub"]
[Black "Vlasak, Lukas"]
[Result "1/2-1/2"]
[ECO "B13"]
[WhiteElo "2418"]
[BlackElo "2415"]
[Annotator "NA RC"]
[PlyCount "31"]
[EventDate "2018.11.03"]
[EventType "team-tourn"]
[EventCountry "CZE"]
[SourceTitle "playchess.com"]
[Source "ChessBase"]
[SourceQuality "1"]
[WhiteTeam "Pardubice"]
[BlackTeam "Turnov"]
[TimeControl "40/5400+30:1800+30"]

1. e4 {[%emt 0:00:00]} c6 {[%emt 0:00:00]} 2. d4 {[%emt 0:01:07]} d5 {[%emt 0:00:00]} 3. exd5 {[%emt 0:00:38]} cxd5 {[%emt 0:00:00]} 4. Bd3 {[%emt 0:00:31]} Nc6 {[%emt 0:00:38]} 5. c3 {[%emt 0:00:13]} Nf6 {[%emt 0:01:59]} 6. Bf4 {[%emt 0:00:24]} Bg4 {[%emt 0:01:08]} 7. Qb3 {[%emt 0:00:28]} Qc8 {[%emt 0:00:14]} 8. Nd2 {[%emt 0:00:57]} e6 {[%emt 0:00:22]} 9. Ngf3 {[%emt 0:01:20]} Bh5 {[%emt 0:00:09]} 10. O-O {[%emt 0:04:57]} Bg6 {[%emt 0:01:14]} 11. Bxg6 {[%emt 0:05:27]} hxg6 {[%emt 0:00:13]} 12. Rae1 {[%emt 0:05:29]} Be7 {[%emt 0:02:12]} 13. Bg5 {[%emt 0:03:00]} Qc7 {[%emt 0:04:01]} 14. Bf4 {[%emt 0:11:41]} Qc8 {[%emt 0:05:39]} 15. Bg5 {[%emt 0:04:22]} Qc7 {[%emt 0:01:01]} 16. Bf4 {[%emt 0:05:27]} 1/2-1/2

[Event "CZE-tht Extraliga 2018-19"]
[Site "Czech Republic"]
[Date "2019.04.19"]
[Round "9.7"]
[White "Bartos, Jan"]
[Black "Meduna, Eduard"]
[Result "1/2-1/2"]
[ECO "D14"]
[WhiteElo "2178"]
[BlackElo "2380"]
[Annotator "NA"]
[PlyCount "37"]
[EventDate "2018.11.03"]
[EventType "team-tourn"]
[EventCountry "CZE"]
[SourceTitle "playchess.com"]
[Source "ChessBase"]
[SourceQuality "1"]
[WhiteTeam "Siesta B"]
[BlackTeam "Lysa nad Labem"]
[TimeControl "40/5400+30:1800+30"]

1. d4 {[%emt 0:00:41]} d5 {[%emt 0:00:37]} 2. c4 {[%emt 0:00:07]} c6 {[%emt 0:00:08]} 3. cxd5 {[%emt 0:00:06]} cxd5 {[%emt 0:00:16]} 4. Nf3 {[%emt 0:00:03]} Nc6 {[%emt 0:00:36]} 5. Bf4 {[%emt 0:00:04]} Nf6 {[%emt 0:00:23]} 6. Nc3 {[%emt 0:00:04]} Bf5 {[%emt 0:00:09]} 7. e3 {[%emt 0:00:10]} e6 {[%emt 0:00:10]} 8. Qb3 {[%emt 0:00:06]} Bb4 {[%emt 0:00:35]} 9. Ne5 {[%emt 0:00:14]} Qa5 {[%emt 0:14:54]} 10. Nxc6 {[%emt 0:06:59]} bxc6 {[%emt 0:00:58]} 11. a3 {[%emt 0:00:25]} Bxc3+ {[%emt 0:03:11]} 12. bxc3 {[%emt 0:01:14]} O-O {[%emt 0:01:56]} 13. Qb4 {[%emt 0:02:49]} Qb6 {[%emt 0:00:32]} 14. f3 {[%emt 0:12:10]} Rfc8 {[%emt 0:02:00]} 15. Bd6 {[%emt 0:13:54]} Nd7 {[%emt 0:04:20]} 16. c4 {[%emt 0:02:54]} Qd8 {[%emt 0:17:13]} 17. c5 {[%emt 0:19:29]} a5 {[%emt 0:03:12]} 18. Qc3 {[%emt 0:01:20]} f6 {[%emt 0:07:23]} 19. Bd3 {[%emt 0:04:25]} 1/2-1/2

[Event "CZE-tht Extraliga 2018-19"]
[Site "Czech Republic"]
[Date "2019.04.19"]
[Round "9.8"]
[White "Priehoda, Vitezslav"]
[Black "Kozak, Milos"]
[Result "1-0"]
[ECO "E12"]
[WhiteElo "2360"]
[BlackElo "2174"]
[Annotator "NA"]
[PlyCount "79"]
[EventDate "2018.11.03"]
[EventType "team-tourn"]
[EventCountry "CZE"]
[SourceTitle "playchess.com"]
[Source "ChessBase"]
[SourceQuality "1"]
[WhiteTeam "Lysa nad Labem"]
[BlackTeam "Siesta B"]
[TimeControl "40/5400+30:1800+30"]

1. d4 {[%emt 0:00:00]} Nf6 {[%emt 0:00:00]} 2. c4 {[%emt 0:00:00]} e6 {[%emt 0:00:00]} 3. Nf3 {[%emt 0:00:00]} b6 {[%emt 0:00:07]} 4. a3 {[%emt 0:00:00]} Bb7 {[%emt 0:00:06]} 5. Nc3 {[%emt 0:00:03]} d5 {[%emt 0:00:04]} 6. Bg5 {[%emt 0:00:15]} Be7 {[%emt 0:00:08]} 7. e3 {[%emt 0:01:37]} O-O {[%emt 0:04:08]} 8. Rc1 {[%emt 0:01:14]} Nbd7 {[%emt 0:02:39]} 9. cxd5 {[%emt 0:01:13]} exd5 {[%emt 0:00:22]} 10. Be2 {[%emt 0:04:49]} c5 {[%emt 0:04:20]} 11. O-O {[%emt 0:02:07]} Ne4 {[%emt 0:08:29]} 12. Bxe7 {[%emt 0:02:45]} Qxe7 {[%emt 0:00:27]} 13. dxc5 {[%emt 0:12:54]} Nxc3 {[%emt 0:00:40]} 14. Rxc3 {[%emt 0:00:16]} Nxc5 {[%emt 0:04:02]} 15. Nd4 {[%emt 0:06:23]} Rfc8 {[%emt 0:02:47]} 16. Bg4 {[%emt 0:08:40]} Ne6 {[%emt 0:06:23]} 17. Qd2 {[%emt 0:14:08]} Rxc3 {[%emt 0:10:14]} 18. Qxc3 {[%emt 0:00:07]} g6 {[%emt 0:00:46]} 19. Nxe6 {[%emt 0:01:58]} fxe6 {[%emt 0:00:09]} 20. Qe5 {[%emt 0:00:03]} Kf7 {[%emt 0:14:46]} 21. Rc1 {[%emt 0:00:10]} Rc8 {[%emt 0:00:07]} 22. Rxc8 {[%emt 0:00:35]} Bxc8 {[%emt 0:00:02]} 23. Qh8 {[%emt 0:02:13]} Qf8 {[%emt 0:12:02]} 24. Qxh7+ {[%emt 0:00:13]} Qg7 {[%emt 0:00:02]} 25. Qxg7+ {[%emt 0:00:33]} Kxg7 26. h4 Kf6 {[%emt 0:01:46]} 27. f4 {[%emt 0:02:41]} Ba6 {[%emt 0:00:43]} 28. Kf2 {[%emt 0:02:14]} e5 {[%emt 0:00:29]} 29. Be2 {[%emt 0:01:30]} Bc8 {[%emt 0:00:42]} 30. g4 {[%emt 0:00:37]} exf4 {[%emt 0:01:49]} 31. exf4 {[%emt 0:00:14]} d4 {[%emt 0:00:34]} 32. Kg3 {[%emt 0:01:46]} Be6 {[%emt 0:00:55]} 33. g5+ {[%emt 0:00:29]} Kg7 {[%emt 0:00:19]} 34. Bd3 {[%emt 0:00:49]} Bd5 {[%emt 0:01:44]} 35. Kf2 {[%emt 0:03:13]} Bc6 {[%emt 0:00:22]} 36. Ke2 {[%emt 0:00:58]} Bd5 {[%emt 0:00:45]} 37. Kd2 {[%emt 0:00:08]} Bb3 {[%emt 0:00:31]} 38. f5 {[%emt 0:01:09]} gxf5 {[%emt 0:00:23]} 39. Bxf5 {[%emt 0:00:02]} Bc4 {[%emt 0:00:16]} 40. h5 {[%emt 0:00:05]} 1-0

[Event "CZE-tht Extraliga 2018-19"]
[Site "Czech Republic"]
[Date "2019.04.19"]
[Round "9.8"]
[White "Cech, Pavel"]
[Black "Petr.Martin"]
[Result "1-0"]
[ECO "D85"]
[WhiteElo "2326"]
[BlackElo "2463"]
[Annotator "RC"]
[PlyCount "81"]
[EventDate "2018.11.03"]
[EventType "team-tourn"]
[EventCountry "CZE"]
[SourceTitle "playchess.com"]
[Source "ChessBase"]
[SourceQuality "1"]
[WhiteTeam "Turnov"]
[BlackTeam "Pardubice"]
[TimeControl "40/5400+30:1800+30"]

1. d4 {[%emt 0:00:00]} Nf6 {[%emt 0:00:00]} 2. c4 {[%emt 0:00:57]} g6 {[%emt 0:00:09]} 3. Nc3 {[%emt 0:00:42]} d5 {[%emt 0:00:09]} 4. cxd5 {[%emt 0:00:21]} Nxd5 {[%emt 0:00:08]} 5. e4 {[%emt 0:00:05]} Nxc3 {[%emt 0:00:04]} 6. bxc3 {[%emt 0:00:04]} Bg7 {[%emt 0:00:06]} 7. Nf3 {[%emt 0:00:14]} c5 {[%emt 0:00:05]} 8. Rb1 {[%emt 0:00:17]} O-O {[%emt 0:02:29]} 9. Be2 {[%emt 0:00:07]} b6 {[%emt 0:00:10]} 10. O-O {[%emt 0:00:08]} Bb7 {[%emt 0:00:04]} 11. Qd3 {[%emt 0:00:09]} cxd4 {[%emt 0:12:45]} 12. cxd4 {[%emt 0:04:14]} Nd7 {[%emt 0:00:08]} 13. Ba3 {[%emt 0:10:39]} Re8 {[%emt 0:03:23]} 14. d5 {[%emt 0:06:31]} Rc8 {[%emt 0:06:56]} 15. Rbc1 {[%emt 0:07:05]} a6 {[%emt 0:04:44]} 16. Rxc8 {[%emt 0:11:27]} Qxc8 {[%emt 0:00:08]} 17. Rc1 {[%emt 0:00:35]} Qb8 {[%emt 0:04:52]} 18. Nd4 {[%emt 0:09:13]} Bh6 {[%emt 0:07:40]} 19. Rc2 {[%emt 0:17:06]} Ne5 {[%emt 0:00:50]} 20. Qh3 {[%emt 0:03:59]} Bg7 {[%emt 0:03:31]} 21. f4 {[%emt 0:10:45]} Ng4 {[%emt 0:00:15]} 22. e5 {[%emt 0:03:40]} h5 {[%emt 0:00:42]} 23. Nc6 {[%emt 0:01:16]} Bxc6 {[%emt 0:00:46]} 24. dxc6 {[%emt 0:00:39]} Qc7 {[%emt 0:09:55]} 25. Bxg4 {[%emt 0:01:53]} hxg4 {[%emt 0:00:05]} 26. Qxg4 {[%emt 0:00:11]} Rd8 {[%emt 0:00:08]} 27. h4 {[%emt 0:02:34]} Rd4 {[%emt 0:01:23]} 28. Qg5 {[%emt 0:02:11]} Bf8 {[%emt 0:06:15]} 29. h5 {[%emt 0:00:47]} Qd8 {[%emt 0:01:24]} 30. Bd6 {[%emt 0:01:10]} Rxd6 {[%emt 0:01:19]} 31. exd6 {[%emt 0:00:28]} Qxd6 {[%emt 0:00:02]} 32. Kh2 {[%emt 0:01:08]} Qd3 {[%emt 0:00:57]} 33. Rc1 {[%emt 0:02:31]} Qd2 {[%emt 0:00:14]} 34. Rb1 {[%emt 0:00:32]} Qd6 {[%emt 0:03:11]} 35. Rxb6 {[%emt 0:01:01]} Qc7 {[%emt 0:00:27]} 36. Rxa6 {[%emt 0:00:29]} Kh7 {[%emt 0:00:08]} 37. hxg6+ {[%emt 0:00:11]} fxg6 {[%emt 0:00:05]} 38. Qe5 {[%emt 0:01:14]} Qc8 {[%emt 0:00:05]} 39. Ra3 {[%emt 0:01:08]} Qxc6 {[%emt 0:00:22]} 40. Rh3+ {[%emt 0:00:14]} Kg8 {[%emt 0:00:12]} 41. Rh8+ {[%emt 0:30:24]} 1-0

[Event "CZE-tht Extraliga 2018-19"]
[Site "Czech Republic"]
[Date "2019.04.19"]
[Round "9.8"]
[White "Caletka, Radomir"]
[Black "Bachorik, Otto"]
[Result "1-0"]
[ECO "A14"]
[WhiteElo "2280"]
[BlackElo "2143"]
[Annotator "ChessBase"]
[PlyCount "105"]
[EventDate "2018.11.03"]
[EventType "team-tourn"]
[EventCountry "CZE"]
[SourceTitle "playchess.com"]
[Source "ChessBase"]
[SourceQuality "1"]
[WhiteTeam "Poruba"]
[BlackTeam "Ostrava"]
[TimeControl "40/5400+30:1800+30"]

1. c4 e6 2. g3 Nf6 3. Bg2 d5 4. Nf3 Be7 5. O-O O-O 6. b3 b6 7. Bb2 Bb7 8. e3 Nbd7 9. Nc3 dxc4 10. bxc4 c5 11. Qe2 Qc7 12. Nb5 Qc6 13. a4 a6 14. Nc3 Ne5 15. Ne1 Qd7 16. Bxb7 Qxb7 17. f4 Nc6 18. g4 Na5 19. d3 Nd7 20. Rf3 Rfe8 21. g5 f5 22. gxf6 Bxf6 23. Ne4 Bxb2 24. Qxb2 Re7 25. Qc3 Rf8 26. Rg3 Nc6 27. Nf3 Qc7 28. Nh4 e5 29. f5 Nf6 30. Ng5 Nd8 31. Rg2 Qd6 32. Rb1 Rd7 33. Rd1 Re7 34. Qb3 Rfe8 35. Rb2 Rb7 36. Qc2 Rd7 37. Qg2 e4 38. d4 cxd4 39. exd4 Qc6 40. Qe2 Qxa4 41. Rxb6 Qa5 42. c5 Qc3 43. Qa2+ Kh8 44. Ng6+ hxg6 45. Rb3 Nd5 46. Rxc3 Nxc3 47. Qg2 Nxd1 48. Qh3+ Kg8 49. Qh7+ Kf8 50. Qh8+ Ke7 51. Qxg7+ Nf7 52. Qxf7+ Kd8 53. Ne6+ 1-0

[Event "CZE-tht Extraliga 2018-19"]
[Site "Czech Republic"]
[Date "2019.04.20"]
[Round "10.1"]
[White "Balogh, Csaba"]
[Black "Molenda, Marcin"]
[Result "0-1"]
[ECO "B47"]
[WhiteElo "2610"]
[BlackElo "2383"]
[Annotator "RC"]
[PlyCount "88"]
[EventDate "2018.11.03"]
[EventType "team-tourn"]
[EventCountry "CZE"]
[SourceTitle "playchess.com"]
[Source "ChessBase"]
[SourceQuality "1"]
[WhiteTeam "Brno"]
[BlackTeam "Cesky Tesin"]
[TimeControl "40/5400+30:1800+30"]

1. e4 {[%emt 0:00:00]} c5 {[%emt 0:00:00]} 2. Nf3 {[%emt 0:00:00]} e6 {[%emt 0:00:00]} 3. d4 {[%emt 0:00:23]} cxd4 {[%emt 0:00:00]} 4. Nxd4 {[%emt 0:00:06]} Nc6 {[%emt 0:00:00]} 5. Nc3 {[%emt 0:00:08]} Qc7 {[%emt 0:00:03]} 6. g4 {[%emt 0:01:28]} a6 {[%emt 0:02:09]} 7. h4 {[%emt 0:01:34]} b5 {[%emt 0:02:43]} 8. Nxc6 {[%emt 0:00:22]} Qxc6 {[%emt 0:00:49]} 9. Bg2 {[%emt 0:00:15]} Bb7 {[%emt 0:04:45]} 10. a3 {[%emt 0:00:38]} Bc5 {[%emt 0:02:46]} 11. Bf4 {[%emt 0:01:16]} Ne7 {[%emt 0:14:42]} 12. h5 {[%emt 0:04:25]} h6 {[%emt 0:06:30]} 13. Qd3 {[%emt 0:15:37]} f6 {[%emt 0:07:39]} 14. Be3 {[%emt 0:17:07]} e5 {[%emt 0:07:29]} 15. O-O-O {[%emt 0:07:45]} O-O-O {[%emt 0:03:51]} 16. Nd5 {[%emt 0:04:24]} Nxd5 {[%emt 0:04:59]} 17. exd5 {[%emt 0:00:05]} Bxe3+ {[%emt 0:00:31]} 18. Qxe3 {[%emt 0:08:04]} Qd6 {[%emt 0:00:40]} 19. a4 {[%emt 0:00:49]} b4 {[%emt 0:01:34]} 20. a5 {[%emt 0:09:17]} Kb8 {[%emt 0:01:01]} 21. Rh3 {[%emt 0:00:19]} Rc8 {[%emt 0:00:42]} 22. Qe4 {[%emt 0:00:10]} Rc7 {[%emt 0:01:30]} 23. Rb3 {[%emt 0:02:29]} Rhc8 {[%emt 0:00:08]} 24. Qxb4 {[%emt 0:19:27]} Rxc2+ {[%emt 0:04:33]} 25. Kb1 {[%emt 0:00:03]} Qxb4 {[%emt 0:00:37]} 26. Rxb4 {[%emt 0:00:05]} Rxf2 {[%emt 0:00:12]} 27. Bf1 {[%emt 0:00:03]} Ka7 {[%emt 0:00:52]} 28. Bd3 {[%emt 0:00:05]} Rc5 {[%emt 0:01:42]} 29. d6 {[%emt 0:02:52]} Rf4 {[%emt 0:06:19]} 30. Rxf4 {[%emt 0:01:41]} exf4 {[%emt 0:00:02]} 31. Rc1 {[%emt 0:00:06]} Rd5 {[%emt 0:08:56]} 32. Be4 {[%emt 0:00:14]} Rd4 {[%emt 0:00:01]} 33. Bxb7 {[%emt 0:02:12]} Kxb7 {[%emt 0:00:01]} 34. Rc7+ {[%emt 0:00:08]} Kb8 {[%emt 0:00:10]} 35. Rc5 {[%emt 0:00:01]} Rxd6 {[%emt 0:02:32]} 36. Rf5 {[%emt 0:00:02]} Rd4 {[%emt 0:00:54]} 37. Kc2 {[%emt 0:00:01]} Kc7 {[%emt 0:02:50]} 38. Kc3 {[%emt 0:00:00]} Re4 {[%emt 0:01:10]} 39. b4 {[%emt 0:00:01]} Kc6 {[%emt 0:00:55]} 40. Rc5+ {[%emt 0:00:13]} Kd6 {[%emt 0:00:41]} 41. Rf5 {[%emt 0:30:02]} Ke6 {[%emt 0:30:43]} 42. b5 {[%emt 0:00:12]} axb5 {[%emt 0:00:45]} 43. Rxb5 {[%emt 0:00:02]} f3 {[%emt 0:01:35]} 44. Kb3 {[%emt 0:02:04]} Rxg4 {[%emt 0:04:06]} 0-1

[Event "CZE-tht Extraliga 2018-19"]
[Site "Czech Republic"]
[Date "2019.04.20"]
[Round "10.1"]
[White "Miton, Kamil"]
[Black "Vavra, Pavel"]
[Result "1/2-1/2"]
[ECO "D45"]
[WhiteElo "2593"]
[BlackElo "2359"]
[Annotator "ChessBase"]
[PlyCount "50"]
[EventDate "2018.11.03"]
[EventType "team-tourn"]
[EventCountry "CZE"]
[SourceTitle "playchess.com"]
[Source "ChessBase"]
[SourceQuality "1"]
[WhiteTeam "Ostrava"]
[BlackTeam "Siesta B"]
[TimeControl "40/5400+30:1800+30"]

1. d4 {[%emt 0:00:00]} d5 {[%emt 0:00:00]} 2. c4 {[%emt 0:00:00]} c6 {[%emt 0:00:00]} 3. Nf3 {[%emt 0:01:06]} e6 {[%emt 0:00:00]} 4. Qc2 {[%emt 0:03:10]} Nf6 {[%emt 0:12:15]} 5. e3 {[%emt 0:03:46]} Nbd7 {[%emt 0:00:36]} 6. Nc3 {[%emt 0:00:09]} Bd6 {[%emt 0:00:22]} 7. Bd3 {[%emt 0:00:15]} O-O {[%emt 0:00:59]} 8. O-O {[%emt 0:00:04]} Re8 {[%emt 0:04:33]} 9. e4 {[%emt 0:18:05]} dxc4 {[%emt 0:11:48]} 10. Bxc4 {[%emt 0:00:09]} b5 {[%emt 0:00:05]} 11. Bb3 {[%emt 0:05:15]} e5 {[%emt 0:11:53]} 12. Ng5 {[%emt 0:07:16]} Rf8 {[%emt 0:07:00]} 13. Ne2 {[%emt 0:00:43]} c5 {[%emt 0:03:58]} 14. Bxf7+ {[%emt 0:09:06]} Rxf7 {[%emt 0:03:40]} 15. Nxf7 {[%emt 0:05:34]} Kxf7 {[%emt 0:00:21]} 16. dxe5 {[%emt 0:00:48]} Nxe5 {[%emt 0:13:33]} 17. f4 {[%emt 0:00:59]} Neg4 {[%emt 0:03:33]} 18. h3 {[%emt 0:20:09]} c4 {[%emt 0:00:29]} 19. Ng3 {[%emt 0:01:00]} Bc5+ {[%emt 0:02:31]} 20. Kh1 {[%emt 0:00:07]} Qd3 {[%emt 0:02:09]} 21. Qxd3 {[%emt 0:01:10]} cxd3 {[%emt 0:00:06]} 22. hxg4 {[%emt 0:01:41]} Nxg4 {[%emt 0:01:00]} 23. Bd2 {[%emt 0:08:11]} Nf2+ {[%emt 0:01:34]} 24. Kh2 {[%emt 0:00:11]} Ng4+ {[%emt 0:00:38]} 25. Kh1 {[%emt 0:00:17]} Nf2+ {[%emt 0:00:54]} 1/2-1/2